[Event "Titled Tuesday Blitz May 23 Late 2023"]
[White "Rose, Felix"]
[Black "Brown, Raehanna"]
[WhiteFideId "5105722"]
[BlackFideId "7402740"]
[WhiteElo "2039"]
[BlackElo "1655"]
[Result "1-0"]
[Round "10"]
[TimeControl "180+2"]
[Date "2023.05.23"]
[WhiteClock "0:00:57"]
[BlackClock "0:00:06"]

1. Nf3 {[%clk 0:03:00]}  Nf6 {[%clk 0:02:58]} 2. b3 {[%clk 0:03:00]}  g6 {[%clk 0:02:59]} 3. Bb2 {[%clk 0:03:00]}  Bg7 {[%clk 0:02:59]} 4. c4 {[%clk 0:03:01]}  O-O {[%clk 0:02:58]} 5. g3 {[%clk 0:03:01]}  b6 {[%clk 0:02:55]} 6. Bg2 {[%clk 0:03:01]}  Bb7 {[%clk 0:02:55]} 7. O-O {[%clk 0:03:02]}  d5 {[%clk 0:02:54]} 8. cxd5 {[%clk 0:02:59]}  Qxd5 {[%clk 0:02:52]} 9. Nc3 {[%clk 0:02:57]}  Qd8 {[%clk 0:02:47]} 10. Rc1 {[%clk 0:02:53]}  c5 {[%clk 0:02:46]} 11. d4 {[%clk 0:02:32]}  Nbd7 {[%clk 0:02:37]} 12. d5 {[%clk 0:02:26]}  Nxd5 {[%clk 0:02:34]} 13. Nxd5 {[%clk 0:02:16]}  Bxb2 {[%clk 0:02:33]} 14. Rc2 {[%clk 0:02:06]}  Bg7 {[%clk 0:02:32]} 15. e4 {[%clk 0:02:02]}  e6 {[%clk 0:02:28]} 16. Nc3 {[%clk 0:01:53]}  Bxc3 {[%clk 0:02:17]} 17. Rxc3 {[%clk 0:01:53]}  Bxe4 {[%clk 0:02:18]} 18. Re1 {[%clk 0:01:52]}  Bc6 {[%clk 0:02:02]} 19. Rd3 {[%clk 0:01:44]}  Qc7 {[%clk 0:01:58]} 20. Re2 {[%clk 0:01:26]}  Rad8 {[%clk 0:01:30]} 21. Red2 {[%clk 0:01:24]}  Rfe8 {[%clk 0:00:27]} 22. Ne5 {[%clk 0:01:21]}  Bxg2 {[%clk 0:00:22]} 23. Nxd7 {[%clk 0:01:17]}  Bc6 {[%clk 0:00:19]} 24. Nf6+ {[%clk 0:01:17]}  Kg7 {[%clk 0:00:16]} 25. Nxe8+ {[%clk 0:01:08]}  Rxe8 {[%clk 0:00:17]} 26. Rd8 {[%clk 0:01:04]}  Rxd8 {[%clk 0:00:16]} 27. Rxd8 {[%clk 0:01:04]}  e5 {[%clk 0:00:15]} 28. Qd6 {[%clk 0:01:03]}  Qb7 {[%clk 0:00:11]} 29. Qxe5+ {[%clk 0:01:00]}  f6 {[%clk 0:00:09]} 30. Qd6 {[%clk 0:00:57]}  Be4 {[%clk 0:00:06]} 31. Qf8# {[%clk 0:00:57]} 1-0


[Site "https://www.chess.com"]

[Event "Titled Tuesday Blitz May 23 Late 2023"]
[White "Florianovitz, Derlei Alex"]
[Black "Zampronha, Wladimir Camilo"]
[WhiteFideId "2114178"]
[BlackFideId "2103087"]
[WhiteElo "1953"]
[BlackElo "2176"]
[Result "1-0"]
[Round "10"]
[TimeControl "180+2"]
[Date "2023.05.23"]
[WhiteClock "0:01:21"]
[BlackClock "0:01:11"]

1. e4 {[%clk 0:03:00]}  c5 {[%clk 0:02:59]} 2. Nf3 {[%clk 0:02:54]}  e6 {[%clk 0:03:00]} 3. d4 {[%clk 0:02:54]}  cxd4 {[%clk 0:03:01]} 4. Nxd4 {[%clk 0:02:54]}  Nc6 {[%clk 0:03:01]} 5. Nc3 {[%clk 0:02:52]}  Qc7 {[%clk 0:03:02]} 6. Be3 {[%clk 0:02:51]}  a6 {[%clk 0:03:02]} 7. a3 {[%clk 0:02:51]}  Nf6 {[%clk 0:03:01]} 8. Bd3 {[%clk 0:02:51]}  Ne5 {[%clk 0:03:00]} 9. Be2 {[%clk 0:02:48]}  d6 {[%clk 0:02:54]} 10. O-O {[%clk 0:02:47]}  Be7 {[%clk 0:02:54]} 11. Bg5 {[%clk 0:02:28]}  O-O {[%clk 0:02:53]} 12. f4 {[%clk 0:02:25]}  Nc4 {[%clk 0:01:56]} 13. Bxc4 {[%clk 0:02:12]}  Qxc4 {[%clk 0:01:57]} 14. e5 {[%clk 0:02:01]}  dxe5 {[%clk 0:01:56]} 15. fxe5 {[%clk 0:02:02]}  Bc5 {[%clk 0:01:50]} 16. exf6 {[%clk 0:02:02]}  Qxd4+ {[%clk 0:01:50]} 17. Kh1 {[%clk 0:01:59]}  gxf6 {[%clk 0:01:44]} 18. Bxf6 {[%clk 0:01:42]}  Qxd1 {[%clk 0:01:44]} 19. Raxd1 {[%clk 0:01:42]}  b6 {[%clk 0:01:34]} 20. b4 {[%clk 0:01:32]}  Be3 {[%clk 0:01:32]} 21. Rf3 {[%clk 0:01:23]}  Bh6 {[%clk 0:01:11]} 22. Rg3+ {[%clk 0:01:21]} 1-0


[Site "https://www.chess.com"]

[Event "Titled Tuesday Blitz May 23 Late 2023"]
[White "dorpato"]
[Black "Kostiukov, Alexandr"]
[BlackFideId "14108100"]
[WhiteElo "2063"]
[BlackElo "2202"]
[Result "0-1"]
[Round "10"]
[TimeControl "180+2"]
[Date "2023.05.23"]
[WhiteClock "0:00:00"]
[BlackClock "0:00:05"]

1. e4 {[%clk 0:02:59]}  c5 {[%clk 0:02:57]} 2. Nc3 {[%clk 0:02:58]}  g6 {[%clk 0:02:58]} 3. g3 {[%clk 0:02:58]}  Bg7 {[%clk 0:02:58]} 4. Bg2 {[%clk 0:02:57]}  Nc6 {[%clk 0:02:59]} 5. d3 {[%clk 0:02:57]}  d6 {[%clk 0:02:59]} 6. Be3 {[%clk 0:02:57]}  e5 {[%clk 0:02:59]} 7. Qd2 {[%clk 0:02:56]}  Nge7 {[%clk 0:03:00]} 8. Bh6 {[%clk 0:02:55]}  Bxh6 {[%clk 0:03:00]} 9. Qxh6 {[%clk 0:02:54]}  Nd4 {[%clk 0:02:59]} 10. O-O-O {[%clk 0:02:52]}  Be6 {[%clk 0:02:58]} 11. Nf3 {[%clk 0:02:51]}  Bg4 {[%clk 0:02:50]} 12. Qe3 {[%clk 0:02:03]}  O-O {[%clk 0:02:14]} 13. h3 {[%clk 0:01:58]}  Bxf3 {[%clk 0:01:49]} 14. Bxf3 {[%clk 0:01:54]}  b5 {[%clk 0:01:44]} 15. h4 {[%clk 0:01:52]}  b4 {[%clk 0:01:44]} 16. Ne2 {[%clk 0:01:52]}  f6 {[%clk 0:01:29]} 17. h5 {[%clk 0:01:49]}  g5 {[%clk 0:01:29]} 18. Bg4 {[%clk 0:01:45]}  Kh8 {[%clk 0:01:12]} 19. f4 {[%clk 0:01:30]}  Rg8 {[%clk 0:01:06]} 20. Nxd4 {[%clk 0:01:14]}  cxd4 {[%clk 0:01:03]} 21. Qf3 {[%clk 0:01:13]}  Rf8 {[%clk 0:00:48]} 22. fxg5 {[%clk 0:01:01]}  fxg5 {[%clk 0:00:46]} 23. Bf5 {[%clk 0:00:54]}  Nxf5 {[%clk 0:00:34]} 24. exf5 {[%clk 0:00:50]}  d5 {[%clk 0:00:35]} 25. Rde1 {[%clk 0:00:37]}  Qd6 {[%clk 0:00:34]} 26. Qg4 {[%clk 0:00:35]}  h6 {[%clk 0:00:33]} 27. Rhf1 {[%clk 0:00:29]}  Rf6 {[%clk 0:00:32]} 28. Qf3 {[%clk 0:00:27]}  Re8 {[%clk 0:00:31]} 29. Re2 {[%clk 0:00:26]}  Rf7 {[%clk 0:00:20]} 30. Rfe1 {[%clk 0:00:24]}  Rfe7 {[%clk 0:00:18]} 31. g4 {[%clk 0:00:20]}  Kg7 {[%clk 0:00:17]} 32. Rf2 {[%clk 0:00:18]}  Kf6 {[%clk 0:00:17]} 33. Rfe2 {[%clk 0:00:18]}  Qc6 {[%clk 0:00:17]} 34. Qg3 {[%clk 0:00:17]}  e4 {[%clk 0:00:15]} 35. dxe4 {[%clk 0:00:16]}  Rxe4 {[%clk 0:00:16]} 36. Rxe4 {[%clk 0:00:16]}  dxe4 {[%clk 0:00:15]} 37. Qb3 {[%clk 0:00:15]}  d3 {[%clk 0:00:13]} 38. c3 {[%clk 0:00:12]}  bxc3 {[%clk 0:00:10]} 39. Qxc3+ {[%clk 0:00:12]}  Qxc3+ {[%clk 0:00:10]} 40. bxc3 {[%clk 0:00:13]}  Ke5 {[%clk 0:00:10]} 41. Kd2 {[%clk 0:00:13]}  Rb8 {[%clk 0:00:10]} 42. Ke3 {[%clk 0:00:11]}  Rb2 {[%clk 0:00:10]} 43. c4 {[%clk 0:00:10]}  Rg2 {[%clk 0:00:09]} 44. c5 {[%clk 0:00:08]}  Rg3+ {[%clk 0:00:10]} 45. Kf2 {[%clk 0:00:08]}  Rf3+ {[%clk 0:00:10]} 46. Kg2 {[%clk 0:00:08]}  Kd5 {[%clk 0:00:06]} 47. c6 {[%clk 0:00:04]}  Rf4 {[%clk 0:00:07]} 48. c7 {[%clk 0:00:04]}  Rxg4+ {[%clk 0:00:07]} 49. Kh3 {[%clk 0:00:04]}  Rh4+ {[%clk 0:00:07]} 50. Kg3 {[%clk 0:00:04]}  d2 {[%clk 0:00:06]} 51. Rd1 {[%clk 0:00:04]}  e3 {[%clk 0:00:06]} 52. c8=Q {[%clk 0:00:04]}  Rd4 {[%clk 0:00:06]} 53. Qc2 {[%clk 0:00:03]}  e2 {[%clk 0:00:05]} 54. Rxd2 {[%clk 0:00:00]}  e1=Q+ {[%clk 0:00:05]} 0-1


[Site "https://www.chess.com"]

[Event "Titled Tuesday Blitz May 23 Late 2023"]
[White "ritanovikova"]
[Black "Petrovic, Aleksa"]
[BlackFideId "967629"]
[WhiteElo "2168"]
[BlackElo "2309"]
[Result "0-1"]
[Round "10"]
[TimeControl "180+2"]
[Date "2023.05.23"]
[WhiteClock "0:00:38"]
[BlackClock "0:00:06"]

1. e3 {[%clk 0:02:59]}  d5 {[%clk 0:02:57]} 2. d4 {[%clk 0:03:00]}  Nf6 {[%clk 0:02:54]} 3. Nf3 {[%clk 0:02:42]}  c6 {[%clk 0:02:52]} 4. c4 {[%clk 0:02:42]}  Nbd7 {[%clk 0:02:51]} 5. Nc3 {[%clk 0:02:42]}  e6 {[%clk 0:02:50]} 6. cxd5 {[%clk 0:02:41]}  exd5 {[%clk 0:02:49]} 7. Bd3 {[%clk 0:02:40]}  Bd6 {[%clk 0:02:49]} 8. O-O {[%clk 0:02:40]}  O-O {[%clk 0:02:48]} 9. Re1 {[%clk 0:02:41]}  Re8 {[%clk 0:02:47]} 10. h3 {[%clk 0:02:41]}  Ne4 {[%clk 0:02:44]} 11. Qc2 {[%clk 0:02:41]}  Ndf6 {[%clk 0:02:33]} 12. Nd2 {[%clk 0:02:40]}  Bf5 {[%clk 0:02:19]} 13. f3 {[%clk 0:02:34]}  Bg3 {[%clk 0:01:55]} 14. Rf1 {[%clk 0:02:14]}  Nxd2 {[%clk 0:01:51]} 15. Bxd2 {[%clk 0:02:13]}  Bxd3 {[%clk 0:01:49]} 16. Qxd3 {[%clk 0:02:14]}  Qd6 {[%clk 0:01:48]} 17. f4 {[%clk 0:02:11]}  Ne4 {[%clk 0:01:46]} 18. Nxe4 {[%clk 0:02:11]}  Rxe4 {[%clk 0:01:47]} 19. Rf3 {[%clk 0:02:09]}  Bh4 {[%clk 0:01:47]} 20. b4 {[%clk 0:02:06]}  Rae8 {[%clk 0:01:24]} 21. b5 {[%clk 0:02:02]}  Bd8 {[%clk 0:01:15]} 22. bxc6 {[%clk 0:02:01]}  bxc6 {[%clk 0:01:10]} 23. Rc1 {[%clk 0:01:59]}  Bb6 {[%clk 0:01:02]} 24. a4 {[%clk 0:01:49]}  c5 {[%clk 0:00:43]} 25. a5 {[%clk 0:01:30]}  c4 {[%clk 0:00:31]} 26. Qc2 {[%clk 0:01:30]}  Bc7 {[%clk 0:00:26]} 27. Qa4 {[%clk 0:01:28]}  h5 {[%clk 0:00:22]} 28. Rb1 {[%clk 0:01:28]}  Qg6 {[%clk 0:00:18]} 29. Kh2 {[%clk 0:01:27]}  Rxe3 {[%clk 0:00:13]} 30. Bxe3 {[%clk 0:01:23]}  Rxe3 {[%clk 0:00:13]} 31. Rxe3 {[%clk 0:01:17]}  Bxf4+ {[%clk 0:00:13]} 32. g3 {[%clk 0:01:17]}  Bxe3 {[%clk 0:00:06]} 33. Qe8+ {[%clk 0:01:15]}  Kh7 {[%clk 0:00:06]} 34. Qxe3 {[%clk 0:01:15]}  Qxb1 {[%clk 0:00:06]} 35. h4 {[%clk 0:01:08]}  Qe4 {[%clk 0:00:05]} 36. Qg5 {[%clk 0:01:06]}  Qxd4 {[%clk 0:00:05]} 37. Qxh5+ {[%clk 0:01:06]}  Kg8 {[%clk 0:00:06]} 38. Qg5 {[%clk 0:01:03]}  c3 {[%clk 0:00:05]} 39. h5 {[%clk 0:01:03]}  c2 {[%clk 0:00:05]} 40. h6 {[%clk 0:01:02]}  Kh7 {[%clk 0:00:03]} 41. Qf5+ {[%clk 0:00:58]}  Kxh6 {[%clk 0:00:03]} 42. Qxc2 {[%clk 0:00:58]}  g6 {[%clk 0:00:03]} 43. Qc1+ {[%clk 0:00:58]}  Kg7 {[%clk 0:00:02]} 44. Qc7 {[%clk 0:00:57]}  Qd2+ {[%clk 0:00:02]} 45. Kh3 {[%clk 0:00:57]}  Qh6+ {[%clk 0:00:02]} 46. Kg2 {[%clk 0:00:57]}  Qe3 {[%clk 0:00:02]} 47. Qd8 {[%clk 0:00:49]}  d4 {[%clk 0:00:02]} 48. Kh3 {[%clk 0:00:49]}  d3 {[%clk 0:00:02]} 49. a6 {[%clk 0:00:49]}  d2 {[%clk 0:00:03]} 50. Qd5 {[%clk 0:00:43]}  Qe2 {[%clk 0:00:02]} 51. Qd4+ {[%clk 0:00:43]}  Kg8 {[%clk 0:00:02]} 52. Qd8+ {[%clk 0:00:43]}  Kh7 {[%clk 0:00:02]} 53. Qh4+ {[%clk 0:00:40]}  Qh5 {[%clk 0:00:03]} 54. g4 {[%clk 0:00:40]}  Qxh4+ {[%clk 0:00:03]} 55. Kxh4 {[%clk 0:00:40]}  d1=Q {[%clk 0:00:03]} 56. Kg5 {[%clk 0:00:40]}  Qa4 {[%clk 0:00:04]} 57. Kh4 {[%clk 0:00:39]}  Qxa6 {[%clk 0:00:05]} 58. g5 {[%clk 0:00:40]}  Qc4+ {[%clk 0:00:05]} 59. Kg3 {[%clk 0:00:40]}  Qd5 {[%clk 0:00:06]} 60. Kf2 {[%clk 0:00:38]}  Qxg5 {[%clk 0:00:06]} 0-1


[Site "https://www.chess.com"]

[Event "Titled Tuesday Blitz May 23 Late 2023"]
[White "Romero Ruscalleda, Josep"]
[Black "Cagara, Paulina"]
[WhiteFideId "2231859"]
[BlackFideId "1124870"]
[WhiteElo "2183"]
[BlackElo "1967"]
[Result "0-1"]
[Round "10"]
[TimeControl "180+2"]
[Date "2023.05.23"]
[WhiteClock "0:00:07"]
[BlackClock "0:00:22"]

1. e4 {[%clk 0:03:00]}  c6 {[%clk 0:02:59]} 2. Nc3 {[%clk 0:03:00]}  d5 {[%clk 0:02:59]} 3. Nf3 {[%clk 0:03:00]}  Bg4 {[%clk 0:02:59]} 4. h3 {[%clk 0:03:00]}  Bxf3 {[%clk 0:02:58]} 5. Qxf3 {[%clk 0:03:01]}  e6 {[%clk 0:02:59]} 6. d4 {[%clk 0:03:00]}  dxe4 {[%clk 0:02:58]} 7. Qxe4 {[%clk 0:03:00]}  Nf6 {[%clk 0:02:57]} 8. Qd3 {[%clk 0:03:00]}  Nbd7 {[%clk 0:02:55]} 9. g3 {[%clk 0:03:00]}  Nd5 {[%clk 0:02:54]} 10. Bg2 {[%clk 0:02:59]}  N7f6 {[%clk 0:02:53]} 11. O-O {[%clk 0:02:58]}  Bd6 {[%clk 0:02:52]} 12. Ne4 {[%clk 0:02:56]}  Nxe4 {[%clk 0:02:51]} 13. Qxe4 {[%clk 0:02:56]}  Nf6 {[%clk 0:02:51]} 14. Qd3 {[%clk 0:02:55]}  O-O {[%clk 0:02:51]} 15. Bg5 {[%clk 0:02:53]}  Qb6 {[%clk 0:02:47]} 16. Bxf6 {[%clk 0:02:45]}  gxf6 {[%clk 0:02:47]} 17. c4 {[%clk 0:02:40]}  Qa5 {[%clk 0:02:41]} 18. a3 {[%clk 0:02:36]}  Rad8 {[%clk 0:02:37]} 19. b4 {[%clk 0:02:33]}  Qc7 {[%clk 0:02:35]} 20. c5 {[%clk 0:02:28]}  Be7 {[%clk 0:02:35]} 21. Qe3 {[%clk 0:02:22]}  f5 {[%clk 0:02:24]} 22. Rad1 {[%clk 0:02:21]}  Bf6 {[%clk 0:02:23]} 23. g4 {[%clk 0:02:11]}  fxg4 {[%clk 0:02:21]} 24. hxg4 {[%clk 0:02:11]}  Kh8 {[%clk 0:02:11]} 25. Rd3 {[%clk 0:02:10]}  Rg8 {[%clk 0:02:11]} 26. Qe4 {[%clk 0:01:56]}  Rg6 {[%clk 0:02:05]} 27. Rfd1 {[%clk 0:01:35]}  Rdg8 {[%clk 0:02:01]} 28. Rh3 {[%clk 0:01:35]}  R8g7 {[%clk 0:01:53]} 29. Bf3 {[%clk 0:01:26]}  a6 {[%clk 0:01:51]} 30. Kf1 {[%clk 0:01:25]}  a5 {[%clk 0:01:45]} 31. Ke2 {[%clk 0:01:23]}  axb4 {[%clk 0:01:44]} 32. axb4 {[%clk 0:01:23]}  Qb8 {[%clk 0:01:35]} 33. Qc2 {[%clk 0:01:03]}  Qa7 {[%clk 0:01:32]} 34. Qb2 {[%clk 0:00:56]}  Qa6+ {[%clk 0:01:30]} 35. Rd3 {[%clk 0:00:55]}  Rg8 {[%clk 0:01:25]} 36. Kd2 {[%clk 0:00:55]}  Ra8 {[%clk 0:01:23]} 37. Be4 {[%clk 0:00:49]}  Rg7 {[%clk 0:01:19]} 38. f4 {[%clk 0:00:41]}  Qc4 {[%clk 0:01:18]} 39. Ke3 {[%clk 0:00:25]}  Ra2 {[%clk 0:01:16]} 40. Qc3 {[%clk 0:00:25]}  Qa6 {[%clk 0:01:11]} 41. g5 {[%clk 0:00:21]}  Be7 {[%clk 0:00:44]} 42. d5 {[%clk 0:00:21]}  Kg8 {[%clk 0:00:26]} 43. d6 {[%clk 0:00:19]}  Bd8 {[%clk 0:00:25]} 44. Rd2 {[%clk 0:00:15]}  Ra3 {[%clk 0:00:24]} 45. Rd3 {[%clk 0:00:12]}  Rxc3 {[%clk 0:00:24]} 46. Rxc3 {[%clk 0:00:11]}  Qf1 {[%clk 0:00:24]} 47. Rd3 {[%clk 0:00:11]}  Qxh3+ {[%clk 0:00:24]} 48. Kd2 {[%clk 0:00:11]}  Qh2+ {[%clk 0:00:23]} 49. Kc3 {[%clk 0:00:11]}  Qxf4 {[%clk 0:00:23]} 50. b5 {[%clk 0:00:11]}  Qxe4 {[%clk 0:00:23]} 51. bxc6 {[%clk 0:00:11]}  Qxc6 {[%clk 0:00:22]} 52. Kc4 {[%clk 0:00:11]}  b6 {[%clk 0:00:22]} 53. Rg3 {[%clk 0:00:10]}  Qxc5+ {[%clk 0:00:22]} 54. Kd3 {[%clk 0:00:07]}  Qxd6+ {[%clk 0:00:22]} 0-1


[Site "https://www.chess.com"]

[Event "Titled Tuesday Blitz May 23 Late 2023"]
[White "coquitovich"]
[Black "Harish, Neeraj"]
[BlackFideId "30958130"]
[WhiteElo "2144"]
[BlackElo "1879"]
[Result "1-0"]
[Round "10"]
[TimeControl "180+2"]
[Date "2023.05.23"]
[WhiteClock "0:00:10"]
[BlackClock "0:00:00"]

1. Nf3 {[%clk 0:03:00]}  d5 {[%clk 0:02:59]} 2. g3 {[%clk 0:02:58]}  Nf6 {[%clk 0:03:00]} 3. Bg2 {[%clk 0:02:59]}  e6 {[%clk 0:02:59]} 4. O-O {[%clk 0:02:59]}  Be7 {[%clk 0:03:00]} 5. d3 {[%clk 0:02:59]}  O-O {[%clk 0:03:01]} 6. Bd2 {[%clk 0:02:59]}  c5 {[%clk 0:02:57]} 7. e3 {[%clk 0:02:54]}  Nc6 {[%clk 0:02:53]} 8. Nc3 {[%clk 0:02:54]}  e5 {[%clk 0:02:52]} 9. Ne2 {[%clk 0:02:46]}  h6 {[%clk 0:02:48]} 10. Ne1 {[%clk 0:02:44]}  Be6 {[%clk 0:02:08]} 11. Nc3 {[%clk 0:02:35]}  Rc8 {[%clk 0:02:04]} 12. h3 {[%clk 0:02:35]}  a6 {[%clk 0:01:59]} 13. a4 {[%clk 0:02:20]}  d4 {[%clk 0:01:53]} 14. Ne4 {[%clk 0:02:13]}  Nd5 {[%clk 0:01:49]} 15. g4 {[%clk 0:01:57]}  g6 {[%clk 0:01:29]} 16. exd4 {[%clk 0:01:50]}  cxd4 {[%clk 0:01:19]} 17. Bxh6 {[%clk 0:01:50]}  Re8 {[%clk 0:01:19]} 18. Qd2 {[%clk 0:01:43]}  Kh7 {[%clk 0:01:05]} 19. Ng5+ {[%clk 0:01:41]}  Bxg5 {[%clk 0:01:02]} 20. Bxg5 {[%clk 0:01:42]}  f6 {[%clk 0:01:00]} 21. Bh4 {[%clk 0:01:29]}  Kg7 {[%clk 0:00:57]} 22. Bg3 {[%clk 0:01:26]}  g5 {[%clk 0:00:52]} 23. c4 {[%clk 0:01:12]}  dxc3 {[%clk 0:00:24]} 24. bxc3 {[%clk 0:01:13]}  Na5 {[%clk 0:00:24]} 25. c4 {[%clk 0:00:53]}  Ne7 {[%clk 0:00:20]} 26. Rd1 {[%clk 0:00:48]}  Rc7 {[%clk 0:00:15]} 27. Be4 {[%clk 0:00:46]}  Rd7 {[%clk 0:00:15]} 28. Bxe5 {[%clk 0:00:45]}  fxe5 {[%clk 0:00:15]} 29. Qxg5+ {[%clk 0:00:45]}  Kf8 {[%clk 0:00:12]} 30. Qxe5 {[%clk 0:00:38]}  Ng8 {[%clk 0:00:08]} 31. Nf3 {[%clk 0:00:35]}  Nc6 {[%clk 0:00:08]} 32. Qg3 {[%clk 0:00:24]}  Rf7 {[%clk 0:00:07]} 33. g5 {[%clk 0:00:19]}  Nd4 {[%clk 0:00:07]} 34. Ne5 {[%clk 0:00:16]}  Rg7 {[%clk 0:00:04]} 35. Qf4+ {[%clk 0:00:15]}  Ke7 {[%clk 0:00:04]} 36. Bxb7 {[%clk 0:00:14]}  Qd6 {[%clk 0:00:03]} 37. Bd5 {[%clk 0:00:12]}  Bxd5 {[%clk 0:00:03]} 38. cxd5 {[%clk 0:00:12]}  Kd8 {[%clk 0:00:03]} 39. Rfe1 {[%clk 0:00:12]}  Rxe5 {[%clk 0:00:02]} 40. Rxe5 {[%clk 0:00:11]}  Nf3+ {[%clk 0:00:03]} 41. Qxf3 {[%clk 0:00:11]}  Qxe5 {[%clk 0:00:03]} 42. Qf8+ {[%clk 0:00:10]}  Qe8 {[%clk 0:00:02]} 43. Qxg7 {[%clk 0:00:09]}  Ne7 {[%clk 0:00:03]} 44. Qf6 {[%clk 0:00:10]}  Qd7 {[%clk 0:00:00]} 45. d6 {[%clk 0:00:10]} 1-0


[Site "https://www.chess.com"]

[Event "Titled Tuesday Blitz May 23 Late 2023"]
[White "Luxama, Jacques Muller"]
[Black "Osiecki, Stanislaw"]
[WhiteFideId "11900113"]
[BlackFideId "1102990"]
[WhiteElo "1931"]
[BlackElo "2088"]
[Result "0-1"]
[Round "10"]
[TimeControl "180+2"]
[Date "2023.05.23"]
[WhiteClock "0:00:04"]
[BlackClock "0:00:02"]

1. e4 {[%clk 0:03:00]}  e6 {[%clk 0:02:50]} 2. d4 {[%clk 0:03:00]}  d5 {[%clk 0:02:49]} 3. Nc3 {[%clk 0:03:00]}  Bb4 {[%clk 0:02:48]} 4. Qg4 {[%clk 0:02:59]}  Kf8 {[%clk 0:02:47]} 5. e5 {[%clk 0:02:58]}  c5 {[%clk 0:02:46]} 6. Nf3 {[%clk 0:02:57]}  h5 {[%clk 0:02:46]} 7. Qf4 {[%clk 0:02:55]}  cxd4 {[%clk 0:02:45]} 8. Nxd4 {[%clk 0:02:53]}  Bxc3+ {[%clk 0:02:40]} 9. bxc3 {[%clk 0:02:53]}  Nc6 {[%clk 0:02:36]} 10. Ba3+ {[%clk 0:02:53]}  Nge7 {[%clk 0:02:33]} 11. Nb5 {[%clk 0:02:49]}  Kg8 {[%clk 0:02:24]} 12. Nd6 {[%clk 0:02:47]}  Qf8 {[%clk 0:02:03]} 13. Bd3 {[%clk 0:02:42]}  Nf5 {[%clk 0:01:22]} 14. O-O {[%clk 0:02:36]}  Nxd6 {[%clk 0:01:19]} 15. Bxd6 {[%clk 0:02:35]}  Qd8 {[%clk 0:01:05]} 16. c4 {[%clk 0:02:30]}  dxc4 {[%clk 0:01:04]} 17. Bxc4 {[%clk 0:02:30]}  Bd7 {[%clk 0:01:05]} 18. Rad1 {[%clk 0:02:28]}  Be8 {[%clk 0:01:04]} 19. Qg3 {[%clk 0:02:24]}  Qa5 {[%clk 0:01:01]} 20. Rd3 {[%clk 0:02:00]}  Rh6 {[%clk 0:00:57]} 21. Rf3 {[%clk 0:01:50]}  Nd4 {[%clk 0:00:53]} 22. Rf4 {[%clk 0:01:44]}  Nf5 {[%clk 0:00:52]} 23. Qf3 {[%clk 0:01:33]}  Nxd6 {[%clk 0:00:50]} 24. exd6 {[%clk 0:01:32]}  Bc6 {[%clk 0:00:48]} 25. Qe3 {[%clk 0:01:23]}  Rg6 {[%clk 0:00:43]} 26. g3 {[%clk 0:01:23]}  Rd8 {[%clk 0:00:37]} 27. Bd3 {[%clk 0:01:21]}  Rg5 {[%clk 0:00:32]} 28. h4 {[%clk 0:01:05]}  Re5 {[%clk 0:00:31]} 29. Qd4 {[%clk 0:01:03]}  Rd5 {[%clk 0:00:29]} 30. Qe4 {[%clk 0:00:55]}  g6 {[%clk 0:00:23]} 31. Rxf7 {[%clk 0:00:54]}  Kxf7 {[%clk 0:00:11]} 32. Qxg6+ {[%clk 0:00:53]}  Kf8 {[%clk 0:00:11]} 33. Qf6+ {[%clk 0:00:42]}  Kg8 {[%clk 0:00:09]} 34. Qxe6+ {[%clk 0:00:40]}  Kf8 {[%clk 0:00:09]} 35. Bg6 {[%clk 0:00:36]}  Rd7 {[%clk 0:00:05]} 36. Qf6+ {[%clk 0:00:31]}  Kg8 {[%clk 0:00:04]} 37. Re1 {[%clk 0:00:15]}  Rg7 {[%clk 0:00:05]} 38. Re7 {[%clk 0:00:13]}  Rxe7 {[%clk 0:00:04]} 39. dxe7 {[%clk 0:00:13]}  Rf5 {[%clk 0:00:01]} 40. Bxf5 {[%clk 0:00:09]}  Qe1+ {[%clk 0:00:01]} 41. Kh2 {[%clk 0:00:04]}  Qh1# {[%clk 0:00:02]} 0-1


[Site "https://www.chess.com"]

[Event "Titled Tuesday Blitz May 23 Late 2023"]
[White "Thiel, Thomas"]
[Black "Vargas, Mauricio"]
[WhiteFideId "4615964"]
[BlackFideId "4404572"]
[WhiteElo "2220"]
[BlackElo "1986"]
[Result "1-0"]
[Round "10"]
[TimeControl "180+2"]
[Date "2023.05.23"]
[WhiteClock "0:01:38"]
[BlackClock "0:00:00"]

1. e4 {[%clk 0:03:00]}  d5 {[%clk 0:02:58]} 2. exd5 {[%clk 0:03:00]}  Qxd5 {[%clk 0:02:57]} 3. Nc3 {[%clk 0:02:59]}  Qa5 {[%clk 0:02:57]} 4. d4 {[%clk 0:02:58]}  c6 {[%clk 0:02:57]} 5. Nf3 {[%clk 0:02:58]}  Nf6 {[%clk 0:02:57]} 6. Bc4 {[%clk 0:02:56]}  Bg4 {[%clk 0:02:56]} 7. h3 {[%clk 0:02:52]}  Bh5 {[%clk 0:02:55]} 8. g4 {[%clk 0:02:49]}  Bg6 {[%clk 0:02:55]} 9. Ne5 {[%clk 0:02:49]}  e6 {[%clk 0:02:54]} 10. Bd2 {[%clk 0:02:38]}  Qc7 {[%clk 0:02:44]} 11. Bb3 {[%clk 0:02:33]}  Bd6 {[%clk 0:02:39]} 12. Qe2 {[%clk 0:02:32]}  Nbd7 {[%clk 0:02:36]} 13. f4 {[%clk 0:02:29]}  O-O-O {[%clk 0:02:09]} 14. O-O-O {[%clk 0:02:27]}  Kb8 {[%clk 0:01:59]} 15. h4 {[%clk 0:02:24]}  h5 {[%clk 0:01:38]} 16. Nxg6 {[%clk 0:02:21]}  fxg6 {[%clk 0:01:36]} 17. g5 {[%clk 0:02:18]}  Ng4 {[%clk 0:01:04]} 18. Rhf1 {[%clk 0:02:15]}  Rde8 {[%clk 0:00:49]} 19. Ne4 {[%clk 0:02:12]}  Rhf8 {[%clk 0:00:40]} 20. Nxd6 {[%clk 0:02:03]}  Qxd6 {[%clk 0:00:26]} 21. Qe4 {[%clk 0:01:59]}  Ka8 {[%clk 0:00:24]} 22. c3 {[%clk 0:01:54]}  Nb6 {[%clk 0:00:14]} 23. Qxg6 {[%clk 0:01:48]}  Re7 {[%clk 0:00:11]} 24. Qxh5 {[%clk 0:01:46]}  Nh2 {[%clk 0:00:09]} 25. Rf2 {[%clk 0:01:43]}  Nd5 {[%clk 0:00:00]} 26. Bxd5 {[%clk 0:01:38]} 1-0


[Site "https://www.chess.com"]

[Event "Titled Tuesday Blitz May 23 Late 2023"]
[White "Stead, Kerry"]
[Black "Prado, Alexandra"]
[WhiteFideId "3202577"]
[BlackFideId "3301346"]
[WhiteElo "1997"]
[BlackElo "1759"]
[Result "1-0"]
[Round "10"]
[TimeControl "180+2"]
[Date "2023.05.23"]
[WhiteClock "0:01:46"]
[BlackClock "0:00:00"]

1. d4 {[%clk 0:02:58]}  Nf6 {[%clk 0:02:54]} 2. f3 {[%clk 0:02:57]}  g6 {[%clk 0:02:49]} 3. e4 {[%clk 0:02:57]}  d6 {[%clk 0:02:46]} 4. Be3 {[%clk 0:02:56]}  Bg7 {[%clk 0:02:45]} 5. Qd2 {[%clk 0:02:55]}  Nc6 {[%clk 0:02:37]} 6. Ne2 {[%clk 0:02:54]}  e5 {[%clk 0:02:34]} 7. d5 {[%clk 0:02:53]}  Ne7 {[%clk 0:02:22]} 8. a4 {[%clk 0:02:51]}  h5 {[%clk 0:02:05]} 9. Nec3 {[%clk 0:02:45]}  Bd7 {[%clk 0:01:48]} 10. Na3 {[%clk 0:02:44]}  Nfg8 {[%clk 0:01:38]} 11. O-O-O {[%clk 0:02:39]}  Bh6 {[%clk 0:01:37]} 12. f4 {[%clk 0:02:25]}  exf4 {[%clk 0:01:17]} 13. Bxf4 {[%clk 0:02:19]}  a6 {[%clk 0:01:05]} 14. Kb1 {[%clk 0:02:10]}  f6 {[%clk 0:00:38]} 15. Bd3 {[%clk 0:02:03]}  Bxf4 {[%clk 0:00:38]} 16. Qxf4 {[%clk 0:02:02]}  g5 {[%clk 0:00:38]} 17. Qf2 {[%clk 0:02:02]}  Ng6 {[%clk 0:00:34]} 18. Nc4 {[%clk 0:01:58]}  Ne5 {[%clk 0:00:27]} 19. Nxe5 {[%clk 0:01:57]}  fxe5 {[%clk 0:00:27]} 20. Rhf1 {[%clk 0:01:56]}  Qe7 {[%clk 0:00:26]} 21. h3 {[%clk 0:01:47]}  O-O-O {[%clk 0:00:19]} 22. Qa7 {[%clk 0:01:47]}  Be8 {[%clk 0:00:04]} 23. Qa8+ {[%clk 0:01:46]}  Kd7 {[%clk 0:00:04]} 24. Qxb7 {[%clk 0:01:47]}  Nf6 {[%clk 0:00:02]} 25. Qc6+ {[%clk 0:01:46]}  Kc8 {[%clk 0:00:00]} 26. Bxa6+ {[%clk 0:01:46]} 1-0


[Site "https://www.chess.com"]